bitfinex-derivatives/quotes_SOLF0:USTF0_20260227
["timestamp","ask_amount","ask_price","bid_price","bid_amount"]
[1772189318920,27.12490796,85.16,85.072,27.54809591]
[1772189319108,7.56248145,85.15,85.072,27.54809591]
[1772189319312,27.12490796,85.149,85.072,27.54809591]
[1772189320016,27.99621992,85.145,85.098,10.5756]
[1772189320413,27.99621992,85.143,85.098,10.5756]
[1772189320616,27.99621992,85.143,85.093,26.96637393]
[1772189321923,27.99621992,85.143,85.1,10.5754]
[1772189324016,27.99621992,85.143,85.093,26.96637393]
[1772189324216,27.99621992,85.171,85.109,26.96637393]
[1772189324622,27.99621992,85.171,85.127,10.572]
[1772189325019,27.99621992,85.171,85.122,26.96637393]
[1772189325522,27.99621992,85.171,85.139,10.5705]
[1772189325723,10.565,85.184,85.139,10.5705]
[1772189326119,27.99621992,85.179,85.135,26.96637393]
[1772189326624,27.99621992,85.163,85.115,26.96637393]
[1772189327922,27.99621992,85.163,85.122,10.5727]
[1772189329326,27.99621992,85.163,85.128,10.5719]
[1772189331321,27.99621992,85.163,85.134,10.5711]
[1772189331520,27.99621992,85.178,85.115,26.96637393]
[1772189333020,27.99621992,85.176,85.133,10.5712]
[1772189333425,27.99621992,85.176,85.115,26.96637393]
[1772189333626,10.5688,85.154,85.117,10.5732]
[1772189333930,27.99621992,85.153,85.117,10.5732]
[1772189335623,27.99621992,85.153,85.11,10.5741]
[1772189336532,38.56341992,85.167,85.102,26.96637393]
[1772189337227,10.5674,85.165,85.122,10.5726]
[1772189337628,38.56361992,85.165,85.122,10.5726]
[1772189338128,38.56361992,85.165,85.116,26.96637393]
[1772189338129,27.99621992,85.165,85.128,10.5719]
[1772189338831,35.24,85.189,85.116,26.96637393]
[1772189338832,27.99621992,85.163,85.12,10.5729]
[1772189340030,10.568,85.16,85.126,10.5721]
[1772189340839,10.569,85.152,85.103,26.96637393]
[1772189341135,38.56521992,85.152,85.103,26.96637393]
[1772189342135,38.56521992,85.152,85.113,10.5737]
[1772189342333,27.99621992,85.169,85.103,26.96637393]
[1772189342534,27.99621992,85.169,85.122,26.96637393]
[1772189343130,10.5658,85.178,85.135,10.571]
[1772189343337,2.82326623,85.17,85.135,10.571]
[1772189344733,2.82326623,85.19,85.134,26.96637393]
[1772189345248,2.82326623,85.21,85.151,26.96637393]
[1772189345540,2.82326623,85.21,85.161,26.96637393]
[1772189345935,2.82326623,85.21,85.169,26.96637393]
[1772189346138,27.99621992,85.238,85.181,26.96637393]
[1772189346332,2.82326623,85.23,85.181,26.96637393]
[1772189346533,27.99621992,85.237,85.181,26.96637393]
[1772189346534,2.82326623,85.22,85.181,26.96637393]
[1772189347041,2.82326623,85.22,85.106,164.4943]
[1772189347042,30.81948615,85.21,85.164,26.96637393]
[1772189347241,27.99621992,85.21,85.164,26.96637393]
[1772189347440,27.99621992,85.21,85.165,10.5673]
[1772189347644,27.99621992,85.21,85.165,37.53367393]
[1772189348932,7.55589063,85.23,85.156,10.5684]
[1772189348933,27.99621992,85.208,85.156,10.5684]
[1772189349135,27.99621992,85.208,85.156,37.53477393]
[1772189349336,27.99621992,85.208,85.157,26.96637393]
[1772189349738,27.99621992,85.206,85.157,26.96637393]
[1772189350238,27.16532562,85.204,85.155,10.5685]
[1772189351236,35.24,85.246,85.155,10.5685]
[1772189351237,27.16532562,85.22,85.156,25.58025963]
[1772189351439,27.16532562,85.238,85.17,7.55589063]
[1772189351739,27.16532562,85.249,85.156,25.58025963]
[1772189351936,7.55589063,85.24,85.156,25.58025963]
[1772189352135,27.16532562,85.239,85.156,25.58025963]
[1772189352334,27.16532562,85.238,85.17,10.5667]
[1772189353141,7.55589063,85.24,85.14,7.55589063]
[1772189353142,37.72472562,85.23,85.177,25.58025963]
[1772189353337,27.16532562,85.229,85.177,25.58025963]
[1772189354137,27.16532562,85.226,85.177,25.58025963]
[1772189354334,35.24,85.259,85.177,25.58025963]
[1772189354535,27.16532562,85.256,85.177,25.58025963]
[1772189354737,27.16532562,85.256,85.205,10.5623]
[1772189358648,27.16532562,85.25,85.196,10.5635]
[1772189359746,27.16532562,85.246,85.196,10.5635]
[1772189359947,27.16532562,85.239,85.188,25.58025963]
[1772189360948,37.72372562,85.238,85.19,10.5642]
[1772189361144,27.16532562,85.237,85.19,10.5642]
[1772189361344,27.16532562,85.237,85.174,25.58025963]
[1772189361849,10.5595,85.229,85.183,10.565]
[1772189362249,27.16532562,85.237,85.183,10.565]
[1772189362949,27.16532562,85.237,85.183,36.14525963]
[1772189363750,27.16532562,85.236,85.183,36.14525963]
[1772189364243,27.16532562,85.236,85.183,10.565]
[1772189364446,35.24,85.277,85.15,69.55305836]
[1772189364447,27.16532562,85.276,85.191,25.58025963]
[1772189364644,27.16532562,85.291,85.211,25.58025963]
[1772189364948,27.16532562,85.28,85.225,25.58025963]
[1772189365551,27.16532562,85.28,85.228,25.58025963]
[1772189366252,27.16532562,85.278,85.2,7.55305836]
[1772189366448,27.16532562,85.278,85.201,25.58025963]
[1772189366849,27.16532562,85.266,85.215,10.5611]
[1772189367149,27.16532562,85.266,85.201,25.58025963]
[1772189367645,27.16532562,85.281,85.227,10.5596]
[1772189368048,27.16532562,85.278,85.234,10.5588]
[1772189368355,27.16532562,85.287,85.235,25.58025963]
[1772189368551,37.71762562,85.287,85.237,10.5584]
[1772189369055,27.16532562,85.286,85.237,10.5584]
[1772189370356,27.16532562,85.284,85.237,10.5584]
[1772189370559,27.16532562,85.279,85.206,10.5622]
[1772189370859,27.16532562,85.259,85.201,25.58025963]
[1772189371759,27.16532562,85.257,85.213,10.5614]
[1772189372954,27.16532562,85.257,85.201,25.58025963]
[1772189373755,27.16532562,85.257,85.181,25.58025963]
[1772189374359,27.16532562,85.257,85.172,21.133]
[1772189374360,27.16532562,85.256,85.204,10.5625]
[1772189375660,27.16532562,85.252,85.204,10.5625]
[1772189376765,27.16532562,85.252,85.21,10.5617]
[1772189376974,27.16532562,85.267,85.195,25.58025963]
[1772189377272,2.81763924,85.26,85.2,2.81763924]
[1772189377472,2.81763924,85.26,85.201,25.58025963]
[1772189377874,2.81763924,85.26,85.222,10.5602]
[1772189379365,26.600437,85.265,85.222,10.5602]
[1772189380977,27.24437926,85.26,85.214,10.5612]
[1772189381972,10.5558,85.258,85.214,10.5612]
[1772189382672,27.24437926,85.26,85.201,25.58025963]
[1772189383079,27.24437926,85.274,85.201,25.58025963]
[1772189383578,27.24437926,85.272,85.22,26.32953703]
[1772189383773,27.24437926,85.272,85.192,26.32953703]
[1772189384881,27.24437926,85.261,85.214,10.5612]
[1772189385678,27.24437926,85.259,85.206,26.32953703]
[1772189385875,27.24437926,85.259,85.173,26.32953703]
[1772189386880,27.24437926,85.248,85.206,10.5623]
[1772189387080,27.24437926,85.248,85.194,26.32953703]
[1772189387981,37.80237926,85.241,85.198,10.5632]
[1772189388580,27.24437926,85.241,85.204,10.5624]
[1772189389775,10.5583,85.238,85.196,10.5634]
[1772189390085,27.24437926,85.237,85.18,26.32953703]
[1772189390886,27.24437926,85.237,85.202,10.5628]
[1772189391189,27.24437926,85.237,85.173,26.32953703]
[1772189392581,27.24437926,85.218,85.165,26.32953703]
[1772189394693,27.24437926,85.216,85.165,26.32953703]
[1772189395885,10.5614,85.213,85.165,26.32953703]
[1772189396089,27.24437926,85.212,85.165,26.32953703]
[1772189396491,27.24437926,85.212,85.166,10.5671]
[1772189396692,27.24437926,85.226,85.165,26.32953703]
[1772189397991,37.80507926,85.219,85.173,10.5663]
[1772189398188,27.24437926,85.219,85.173,26.32953703]
[1772189399890,27.24437926,85.219,85.18,10.5655]
[1772189400282,27.24437926,85.219,85.147,200.83273251]
[1772189400482,27.24437926,85.188,85.14,10.5704]
[1772189400685,27.24437926,85.188,85.131,26.32953703]
[1772189401391,2.82304376,85.18,85.131,26.32953703]
[1772189401582,2.82304376,85.17,85.131,36.90103703]
[1772189402192,2.82304376,85.16,85.131,36.90103703]
[1772189402392,2.82304376,85.17,85.131,36.90103703]
[1772189403792,30.06742302,85.14,85.087,26.32953703]
[1772189404296,2.82304376,85.13,85.094,10.5761]
[1772189404991,2.82304376,85.11,85.071,26.32953703]
[1772189405194,27.24437926,85.109,85.055,26.32953703]
[1772189405989,27.24437926,85.109,85.008,21.1736]
[1772189406188,164.3682,85.173,85.038,26.32953703]
[1772189406189,27.24437926,85.099,85.038,26.32953703]
[1772189406886,27.24437926,85.079,85.022,26.32953703]
[1772189407093,27.24437926,85.099,85.022,26.32953703]
[1772189407395,27.24437926,85.085,85.022,26.32953703]
[1772189407594,27.24437926,85.079,85.022,26.32953703]
[1772189408288,27.24437926,85.059,84.996,26.32953703]
[1772189408794,27.24437926,85.059,85.011,26.32953703]
[1772189409697,27.24437926,85.059,84.977,27.3965355]
[1772189409698,27.24437926,85.059,84.955,21.1868]
[1772189409699,27.24437926,85.059,84.884,26.32953703]
[1772189409700,35.24,85.01,84.884,26.32953703]
[1772189409888,26.74807354,84.989,84.908,25.9481675]
[1772189410590,26.74807354,84.986,84.908,25.9481675]
[1772189410791,26.74807354,84.979,84.908,25.9481675]
[1772189411187,7.57547085,84.97,84.893,25.9481675]
[1772189411396,26.74807354,84.969,84.893,25.9481675]
[1772189411594,26.74807354,84.989,84.901,25.9481675]
[1772189411797,26.74807354,84.989,84.923,25.9481675]
[1772189411998,26.74807354,85.007,84.923,25.9481675]
[1772189412395,26.74807354,84.999,84.937,10.5956]
[1772189412790,26.74807354,84.999,84.923,25.9481675]
[1772189413699,26.74807354,84.999,84.924,25.9481675]
[1772189414092,26.74807354,84.999,84.926,25.9481675]
[1772189415700,26.74807354,84.979,84.911,10.5989]
[1772189415903,26.74807354,84.979,84.911,36.5470675]
[1772189416200,26.74807354,84.979,84.916,25.9481675]
[1772189417497,26.74807354,84.959,84.899,25.9481675]
[1772189417701,26.74807354,84.959,84.889,10.6016]
[1772189418202,26.74807354,84.959,84.9,10.6003]
[1772189418997,26.74807354,84.959,84.89,25.9481675]
[1772189419499,26.74807354,84.959,84.886,10.602]
[1772189421203,26.74807354,85.019,84.882,164.929]
[1772189421407,26.74807354,84.999,84.91,7.59888207]
[1772189421902,26.74807354,84.999,84.945,10.5946]
[1772189422294,26.74807354,84.999,84.9,7.59888207]
[1772189422494,26.74807354,84.999,84.931,10.5964]
[1772189422696,26.74807354,84.979,84.9,7.59888207]
[1772189422901,26.74807354,84.979,84.88,7.59888207]
[1772189423310,26.74807354,84.979,84.881,25.9481675]
[1772189423500,26.74807354,84.959,84.894,10.601]
[1772189424702,26.74807354,84.939,84.881,10.6026]
[1772189425104,26.74807354,84.939,84.869,10.6041]
[1772189425301,26.74807354,84.937,84.869,10.6041]
[1772189425513,7.59888207,84.92,84.869,10.6041]
[1772189425708,26.74807354,84.919,84.869,10.6041]
[1772189426602,26.74807354,84.939,84.879,10.6029]
[1772189427009,26.74807354,84.937,84.861,25.9481675]
[1772189427403,26.74807354,84.937,84.877,10.6032]
[1772189427605,26.74807354,84.937,84.861,25.9481675]
[1772189428010,26.74807354,84.959,84.897,10.6007]
[1772189428511,26.74807354,84.959,84.907,10.5994]
[1772189429201,26.74807354,84.979,84.902,25.9481675]
[1772189431604,26.74807354,84.976,84.913,10.5987]
[1772189432110,26.74807354,84.963,84.881,25.9481675]
[1772189432807,26.74807354,84.939,84.862,25.9481675]
[1772189433908,26.74807354,84.929,84.862,25.9481675]
[1772189434809,26.74807354,84.956,84.862,25.9481675]
[1772189435313,26.74807354,84.94,84.888,10.6017]
[1772189436010,26.74807354,84.937,84.879,10.603]
[1772189436810,26.74807354,84.923,84.87,10.604]
[1772189437017,26.74807354,84.923,84.862,25.9481675]
[1772189437411,26.74807354,84.923,84.85,62.0]
[1772189437716,320.61405423,84.958,84.857,25.9481675]
[1772189437717,26.74807354,84.941,84.857,25.9481675]
[1772189437913,164.8239,84.937,84.767,25.80900928]
[1772189438113,10.6061,84.854,84.757,40.59846895]
[1772189438313,35.24,84.869,84.788,40.59846895]
[1772189438516,35.32677855,84.859,84.788,17.10846895]
[1772189438710,35.24,84.859,84.788,17.10846895]
[1772189438910,0.08677855,84.874,84.788,17.10846895]
[1772189439117,0.08677855,84.859,84.788,17.10846895]
[1772189440827,7.59888207,84.9,84.801,30.22310062]
[1772189441026,7.59888207,84.93,84.821,30.22310062]
[1772189441331,7.59888207,84.93,84.848,30.22310062]
[1772189441727,7.59888207,84.93,84.852,30.22435659]
[1772189442426,7.59888207,84.91,84.832,30.22435659]
[1772189442628,7.59888207,84.89,84.813,29.32811545]
[1772189442831,164.8023,84.948,84.813,29.32811545]
[1772189443032,485.39805423,84.958,84.821,29.32811545]
[1772189443033,320.61405423,84.958,84.821,29.32811545]
[1772189443331,7.59888207,84.93,84.841,29.32811545]
[1772189443832,7.59888207,84.93,84.844,29.3275947]
[1772189444436,10.5971,84.926,84.844,29.3275947]
[1772189445135,320.61405423,84.958,84.84,7.59888207]
[1772189445136,18.19428207,84.94,84.848,29.29236543]
[1772189445936,18.19428207,84.94,84.85,29.2917874]
[1772189446235,10.5969,84.928,84.85,29.2917874]
[1772189447528,10.5969,84.928,84.852,29.17943276]
[1772189447735,10.5955,84.939,84.852,29.17943276]
[1772189447931,7.59888207,84.94,84.855,29.1786634]
[1772189448133,0.09534396,84.939,84.855,29.1786634]
[1772189448333,0.09534396,84.921,84.855,29.1786634]
[1772189448528,0.06461166,84.899,84.821,29.19402955]
[1772189448729,0.06461166,84.899,84.823,29.19402955]
[1772189449330,10.6011,84.894,84.823,29.19402955]
[1772189449833,10.6011,84.894,84.826,29.19330673]
[1772189450339,0.27510831,84.939,84.86,39.79850673]
[1772189450535,0.27510831,84.939,84.86,29.19330673]
[1772189453034,10.5993,84.909,84.86,29.19330673]
[1772189453229,0.16867292,84.935,84.86,29.19330673]
[1772189453435,0.16867292,84.933,84.86,29.19330673]
[1772189453639,0.16934537,84.931,84.86,29.19330673]
[1772189453838,10.5992,84.91,84.86,29.19330673]
[1772189454041,0.16934537,84.931,84.863,29.39822882]
[1772189454339,9.98122079,84.93,84.863,29.39822882]
[1772189455040,10.598,84.919,84.863,29.39822882]
[1772189455334,10.56231244,84.964,84.883,29.36262664]
[1772189455530,0.43879402,84.953,84.883,29.36262664]
[1772189455736,9.98441156,84.946,84.883,29.36262664]
[1772189455939,9.98441156,84.945,84.883,29.36262664]
[1772189456243,0.53522572,84.943,84.863,29.36223807]
[1772189456537,0.53522572,84.929,84.863,29.36223807]
[1772189456935,10.5988,84.913,84.864,29.44154812]
[1772189457135,0.53522572,84.929,84.864,29.44154812]
[1772189457339,7.59888207,84.94,84.864,29.44154812]
[1772189457535,9.99258015,84.939,84.864,29.44154812]
[1772189457742,9.99258015,84.938,84.864,29.44154812]
[1772189457940,9.99258015,84.937,84.864,29.44154812]
[1772189458240,10.00134943,84.936,84.864,29.44154812]
[1772189458439,0.56742445,84.934,84.864,29.44154812]
[1772189458639,8.20594003,84.92,84.864,29.44154812]
[1772189458839,10.00134943,84.919,84.864,29.44154812]
[1772189459040,10.5992,84.91,84.864,29.44154812]
[1772189459240,8.20594003,84.92,84.864,29.44154812]
[1772189459438,10.0035158,84.919,84.864,29.44154812]
[1772189459640,10.0035158,84.918,84.864,29.44154812]
[1772189459839,10.6003,84.901,84.864,29.44154812]
[1772189460039,8.20594003,84.92,84.842,29.42120702]
[1772189460040,0.70126617,84.916,84.842,29.42120702]
[1772189460239,0.79439884,84.914,84.842,29.42120702]
[1772189460444,10.80040919,84.913,84.842,29.42120702]
[1772189460640,10.00601035,84.912,84.846,29.3870161]
[1772189460839,10.00601035,84.911,84.846,29.3870161]
[1772189461042,10.56231244,84.95,84.861,29.3870161]
[1772189461242,10.01210913,84.946,84.887,29.3870161]
[1772189461543,10.01210913,84.945,84.887,29.3870161]
[1772189461738,10.01210913,84.944,84.887,29.3870161]
[1772189461943,10.5955,84.939,84.887,29.3870161]
[1772189462446,10.01522391,84.938,84.887,29.3870161]
[1772189462641,10.01522391,84.937,84.887,29.3870161]
[1772189462841,10.01522391,84.936,84.887,29.3870161]
[1772189463036,10.01522391,84.935,84.887,29.3870161]
[1772189463234,10.56231244,84.974,84.901,29.2287351]
[1772189463442,1.45007598,84.969,84.901,29.2287351]
[1772189463640,10.01162262,84.968,84.901,29.2287351]
[1772189463846,10.01162262,84.967,84.901,29.2287351]
[1772189464046,10.01162262,84.966,84.901,29.2287351]
[1772189464344,10.01162262,84.965,84.901,29.2287351]
[1772189464544,10.01162262,84.964,84.914,10.5985]
[1772189464748,1.45007598,84.969,84.914,10.5985]
[1772189465046,10.01234744,84.968,84.914,10.5985]
[1772189465247,447.58137541,84.985,84.917,29.40619516]
[1772189465440,10.0116954,84.984,84.917,29.40619516]
[1772189465643,10.0116954,84.983,84.917,29.40619516]
[1772189465842,447.58137541,84.985,84.917,29.40619516]
[1772189466044,1.27128338,85.007,84.931,29.40591931]
[1772189466641,1.27128338,85.007,84.943,29.49158217]
[1772189467445,10.5858,85.017,84.943,29.49158217]
[1772189467946,10.00832825,85.039,84.954,29.49143439]
[1772189468147,1.35588273,85.019,84.954,29.49143439]
[1772189468344,1.35588273,85.039,84.954,29.49143439]
[1772189468545,11.93898273,85.039,84.974,10.5911]
[1772189468745,1.35588273,85.039,84.975,29.35243764]
[1772189469138,1.35588273,85.039,84.981,29.35243764]
[1772189469544,1.35588273,85.039,84.982,39.94210359]
[1772189469844,1.35588273,85.039,84.964,29.35210359]
[1772189470349,1.35588273,85.039,84.973,29.35210359]
[1772189470749,452.83562203,85.045,84.973,29.35210359]
[1772189471840,10.5838,85.033,84.975,10.591]
[1772189472045,10.5838,85.033,84.973,29.35210359]
[1772189472650,10.5838,85.033,84.981,10.5901]
[1772189473644,2.65942958,85.029,84.955,29.04666128]
[1772189473850,452.83562203,85.045,84.955,29.04666128]
[1772189473851,2.65942958,85.019,84.955,29.04666128]
[1772189474241,10.5878,85.001,84.955,29.04666128]
[1772189474443,2.65942958,85.019,84.935,29.04666128]
[1772189474444,2.7376861,84.999,84.935,29.04666128]
[1772189474650,2.7376861,84.999,84.917,28.98343867]
[1772189474849,2.87165265,84.979,84.917,28.98343867]
[1772189475652,10.5917,84.969,84.917,28.98343867]
[1772189475852,10.5917,84.969,84.87,62.0]
[1772189475853,2.9503293,84.959,84.893,28.98343867]
[1772189476254,7.59888207,84.94,84.893,28.98343867]
[1772189476756,10.5958,84.937,84.893,28.98343867]
[1772189477152,7.59888207,84.94,84.893,28.98343867]
[1772189477954,10.5955,84.939,84.893,28.98343867]
[1772189478554,10.5967,84.93,84.893,28.98343867]
[1772189478948,2.9503293,84.959,84.893,28.98343867]
[1772189479148,7.59888207,84.96,84.893,28.98343867]
[1772189479346,2.63414576,84.959,84.893,28.98343867]
[1772189480348,10.5939,84.952,84.895,29.28714409]
[1772189480547,2.63414576,84.959,84.895,29.28714409]
[1772189481752,2.63414576,84.959,84.877,10.6031]
[1772189481954,7.59888207,84.94,84.878,29.25216682]
[1772189482461,10.5971,84.927,84.878,29.25216682]
[1772189484253,10.68757756,84.93,84.86,29.24359026]
[1772189484451,3.07908104,84.929,84.86,29.24359026]
[1772189485455,10.5983,84.917,84.865,29.33042475]
[1772189486261,10.5993,84.909,84.865,29.33042475]
[1772189488155,10.598,84.919,84.867,29.28989885]
[1772189488759,10.5969,84.928,84.871,29.43093652]
[1772189489158,7.60849652,84.93,84.871,29.43093652]
[1772189489555,3.25694772,84.946,84.879,29.4307609]
[1772189490154,7.60849652,84.95,84.89,29.4307609]
[1772189490358,3.10618016,84.949,84.89,29.4307609]
[1772189492967,7.60849652,84.95,84.891,29.46555983]
[1772189493565,2.97085404,84.966,84.901,29.46562768]
[1772189494369,2.97085404,84.966,84.903,29.46562768]
[1772189494570,3.03221439,84.984,84.903,29.46562768]
[1772189494769,7.60849652,84.98,84.903,29.46562768]
[1772189495162,3.00087837,84.979,84.903,29.46562768]
[1772189495464,3.00087837,84.979,84.907,29.40289827]
[1772189495664,10.5935,84.955,84.907,29.40289827]
[1772189495866,10.5935,84.955,84.908,29.40299619]
[1772189496461,3.00087837,84.979,84.908,10.46559619]
[1772189496666,21.90674437,84.959,84.85,7.60849652]
[1772189496973,21.90674437,84.959,84.87,7.60849652]
[1772189497369,10.595,84.943,84.897,10.6007]
[1772189498370,7.60849652,84.99,84.89,7.60849652]
[1772189498671,22.21270481,84.989,84.891,29.06564733]
[1772189499266,10.5924,84.964,84.918,10.598]
[1772189500771,10.5924,84.964,84.921,28.33199098]
[1772189500971,10.5908,84.977,84.921,28.33199098]
[1772189501476,10.5936,84.954,84.903,28.33199098]
[1772189501777,7.60849652,84.99,84.903,28.33199098]
[1772189502073,10.5895,84.987,84.927,28.33199098]
[1772189502271,22.03888994,85.009,84.927,28.33199098]
[1772189502463,22.03888994,85.009,84.931,28.33199098]
[1772189503069,32.62568994,85.009,84.952,10.5938]
[1772189503372,22.35714807,85.029,84.953,28.33199098]
[1772189504275,10.5846,85.027,84.953,28.33199098]
[1772189504472,22.34169003,85.044,84.953,28.33199098]
[1772189504671,22.57624761,85.029,84.953,28.33199098]
[1772189504869,22.57624761,85.009,84.921,28.33199098]
[1772189505975,10.588,84.999,84.942,28.33199098]
[1772189506170,22.57624761,85.009,84.942,28.33199098]
[1772189507876,10.5871,85.007,84.958,10.593]
[1772189508276,33.1894264,85.007,84.958,10.593]
[1772189508679,22.6023264,85.007,84.965,10.5922]
[1772189509278,10.5851,85.023,84.973,10.5912]
[1772189509476,22.42187046,85.024,84.958,28.33199098]
[1772189510074,10.5859,85.016,84.973,10.5912]
[1772189510481,22.42187046,85.024,84.958,28.33199098]
[1772189510681,10.5858,85.017,84.965,10.5921]
[1772189510880,10.5858,85.017,84.958,28.33199098]
[1772189511878,10.5858,85.017,84.972,10.5913]
[1772189512076,10.5866,85.01,84.958,28.33199098]
[1772189512482,10.5866,85.01,84.964,10.5923]
[1772189513076,10.5857,85.018,84.972,10.5913]
[1772189513380,7.60849652,85.02,84.958,28.33199098]
[1772189513978,22.42187046,85.024,84.979,10.5904]
[1772189514277,22.42187046,85.024,84.973,28.33199098]
[1772189515481,10.5861,85.015,84.974,10.5911]
[1772189516880,10.5852,85.022,84.974,10.5911]
[1772189518081,10.5852,85.022,84.98,10.5903]
[1772189518979,10.5843,85.029,84.984,38.92179098]
[1772189519182,10.5843,85.029,84.985,28.33199098]
[1772189519379,23.07664641,85.039,84.985,28.33199098]
[1772189519577,10.587,85.008,84.966,28.33199098]
[1772189519782,10.587,85.008,84.93,7.60849652]
[1772189519783,23.07626548,85.019,84.931,28.33199098]
[1772189520280,23.063798,85.036,84.966,28.33199098]
[1772189520877,10.5842,85.03,84.988,10.5893]
[1772189522281,7.60849652,85.04,84.966,28.33199098]
[1772189522679,24.53088894,85.039,84.966,28.33199098]
[1772189523687,10.5858,85.017,84.973,10.5911]
[1772189523878,24.51817891,85.019,84.941,28.33199098]
[1772189524680,24.51817891,85.019,84.94,7.60849652]
[1772189524681,10.5875,85.004,84.956,28.33199098]
[1772189524880,24.51817891,85.019,84.956,28.33199098]
[1772189525186,10.5873,85.005,84.964,10.5923]
[1772189525580,24.51817891,85.019,84.964,28.33199098]
[1772189526988,10.5864,85.012,84.971,10.5914]
[1772189527180,24.51817891,85.019,84.964,28.33199098]
[1772189528880,10.5872,85.006,84.964,38.92429098]
[1772189529283,10.5872,85.006,84.964,28.33199098]
[1772189530886,10.5872,85.006,84.97,10.5916]
[1772189532180,10.5872,85.006,84.964,28.33199098]
[1772189532878,10.5872,85.006,84.968,27.65072651]
[1772189533588,10.5872,85.006,84.869,164.955]
[1772189533589,24.91111376,84.999,84.918,27.65072651]
[1772189533979,35.49978232,84.989,84.942,10.595]
[1772189534384,24.91048232,84.989,84.934,27.65072651]
[1772189534790,24.91048232,84.989,84.865,35.24]
[1772189534791,24.91048232,84.989,84.875,21.2069]
[1772189534993,7.60849652,84.95,84.876,27.65072651]
[1772189535387,25.29210945,84.969,84.876,27.65072651]
[1772189535988,25.28127575,84.968,84.909,27.65072651]
[1772189536193,32.88011964,84.95,84.893,27.65072651]
[1772189536395,10.5948,84.945,84.895,10.6009]
[1772189536989,25.47162569,84.944,84.886,27.65072651]
[1772189537198,25.46193578,84.899,84.79,27.65072651]
[1772189537487,7.60849652,84.9,84.831,27.65072651]
[1772189537693,25.46126082,84.909,84.831,27.65072651]
[1772189538294,7.60849652,84.96,84.831,27.65072651]
[1772189538295,25.45173001,84.927,84.831,27.65072651]
[1772189538587,164.7138,84.994,84.855,27.65072651]
[1772189538588,7.60849652,84.93,84.855,27.65072651]
[1772189538782,31.86358723,84.93,84.855,27.65072651]
[1772189539186,7.60849652,84.91,84.859,27.65072651]
[1772189539385,24.24569043,84.929,84.859,27.65072651]
[1772189539782,21.19744454,84.998,84.816,165.0575]
[1772189539783,24.24517234,84.946,84.862,27.65072651]
[1772189540390,7.60849652,84.95,84.887,27.65072651]
[1772189541093,7.60849652,84.93,84.84,7.60849652]
[1772189541293,7.60849652,84.93,84.841,27.65072651]
[1772189542400,24.40216675,84.943,84.869,27.65072651]
[1772189542592,32.14593577,84.93,84.869,27.65072651]
[1772189542793,32.14593577,84.93,84.872,27.65072651]
[1772189542989,7.60849652,84.93,84.872,27.65072651]
[1772189543593,24.53743925,84.947,84.872,27.65072651]
[1772189543791,24.52792827,84.945,84.872,27.65072651]
[1772189544102,24.51909312,84.939,84.872,27.65072651]
[1772189544697,24.50175617,84.938,84.872,27.65072651]
[1772189545995,24.50175617,84.938,84.883,10.6024]
[1772189546195,24.50175617,84.938,84.884,27.65072651]
[1772189547100,24.50175617,84.938,84.891,10.6013]
[1772189549091,24.31259185,84.953,84.894,10.6011]
[1772189549700,24.3121059,84.95,84.894,10.6011]
[1772189550594,24.6176007,84.935,84.872,27.65072651]
[1772189550796,24.6176007,84.919,84.872,27.65072651]
[1772189551999,10.5982,84.918,84.872,27.65072651]
[1772189553400,24.6176007,84.919,84.872,27.65072651]
[1772189553599,24.89824901,84.936,84.872,27.65072651]
[1772189554104,24.89824901,84.936,84.879,10.6029]
[1772189555003,10.5969,84.928,84.879,10.6029]
[1772189557499,10.5945,84.947,84.882,27.65072651]
[1772189557700,24.7615392,84.946,84.882,27.65072651]
[1772189558206,24.7615392,84.946,84.892,10.6013]
[1772189558497,24.7615392,84.946,84.882,27.65072651]
[1772189558700,10.5977,84.921,84.874,10.6035]
[1772189558904,24.84288116,84.929,84.874,28.01669438]
[1772189559800,24.84288116,84.929,84.888,10.6018]
[1772189560107,24.84288116,84.929,84.874,28.01669438]
[1772189560700,24.84288116,84.929,84.879,29.82756384]
[1772189561706,24.49807056,84.949,84.879,29.82756384]
[1772189561902,10.5957,84.937,84.887,10.6019]
[1772189562404,24.482797,84.919,84.86,29.82756384]
[1772189562606,10.5982,84.918,84.869,10.6041]
[1772189563502,24.482797,84.919,84.869,10.6041]
[1772189564911,24.482797,84.919,84.869,29.82756384]
[1772189565605,7.60723437,84.91,84.831,29.82756384]
[1772189565804,24.32920087,84.909,84.831,29.82756384]
[1772189566005,24.32920087,84.896,84.831,29.82756384]
[1772189567008,10.601,84.895,84.846,10.607]
[1772189567316,24.32920087,84.896,84.831,29.82756384]
[1772189568412,25.27515085,84.874,84.828,10.6093]
[1772189569012,25.27515085,84.874,84.811,29.82756384]
[1772189569201,7.60723437,84.88,84.811,29.82756384]